[Event "Titled Tuesday Blitz February 22 Early 2022"]
[White "Krsnik Cohar, Ivan Vihor"]
[Black "Van Foreest, Jorden"]
[WhiteFideId "14520044"]
[BlackFideId "1039784"]
[WhiteElo "2414"]
[BlackElo "2609"]
[Result "0-1"]
[Round "03"]
[TimeControl "180+1"]
[Date "2022.02.22"]
[WhiteClock "0:00:09"]
[BlackClock "0:00:23"]

1. d4 {[%clk 0:03:00]}  Nf6 {[%clk 0:02:59]} 2. Bg5 {[%clk 0:03:01]}  d5 {[%clk 0:02:56]} 3. Nd2 {[%clk 0:03:01]}  c5 {[%clk 0:02:54]} 4. e3 {[%clk 0:03:01]}  Nc6 {[%clk 0:02:53]} 5. c3 {[%clk 0:03:02]}  Bf5 {[%clk 0:02:52]} 6. Qb3 {[%clk 0:03:01]}  Qb6 {[%clk 0:02:37]} 7. dxc5 {[%clk 0:02:48]}  Qxc5 {[%clk 0:02:35]} 8. Ngf3 {[%clk 0:02:46]}  e6 {[%clk 0:02:28]} 9. Nd4 {[%clk 0:02:36]}  Nxd4 {[%clk 0:02:10]} 10. exd4 {[%clk 0:02:37]}  Qb6 {[%clk 0:02:10]} 11. Bb5+ {[%clk 0:02:33]}  Nd7 {[%clk 0:02:10]} 12. Qa4 {[%clk 0:02:33]}  Qc7 {[%clk 0:02:09]} 13. Bf4 {[%clk 0:02:07]}  Qxf4 {[%clk 0:02:02]} 14. Bxd7+ {[%clk 0:02:07]}  Kd8 {[%clk 0:02:00]} 15. Bb5 {[%clk 0:02:07]}  Bd6 {[%clk 0:01:53]} 16. g3 {[%clk 0:01:54]}  Qh6 {[%clk 0:01:50]} 17. Be2 {[%clk 0:01:50]}  Ke7 {[%clk 0:01:47]} 18. Nf1 {[%clk 0:01:44]}  Be4 {[%clk 0:01:45]} 19. f3 {[%clk 0:01:41]}  Bf5 {[%clk 0:01:42]} 20. Kf2 {[%clk 0:01:40]}  Rhe8 {[%clk 0:01:21]} 21. Ne3 {[%clk 0:01:40]}  Kf8 {[%clk 0:01:10]} 22. Rae1 {[%clk 0:01:28]}  Qf6 {[%clk 0:01:09]} 23. Bb5 {[%clk 0:01:16]}  Red8 {[%clk 0:01:04]} 24. Bf1 {[%clk 0:01:10]}  a6 {[%clk 0:01:04]} 25. Bg2 {[%clk 0:01:10]}  b5 {[%clk 0:01:05]} 26. Qd1 {[%clk 0:01:10]}  b4 {[%clk 0:01:05]} 27. Qa4 {[%clk 0:00:54]}  Bd3 {[%clk 0:01:02]} 28. Ng4 {[%clk 0:00:50]}  Qg5 {[%clk 0:01:01]} 29. Qd1 {[%clk 0:00:47]}  Bc4 {[%clk 0:01:02]} 30. h4 {[%clk 0:00:44]}  Qf5 {[%clk 0:00:54]} 31. Ne5 {[%clk 0:00:40]}  bxc3 {[%clk 0:00:53]} 32. bxc3 {[%clk 0:00:38]}  Rab8 {[%clk 0:00:53]} 33. Nxc4 {[%clk 0:00:36]}  dxc4 {[%clk 0:00:53]} 34. Re2 {[%clk 0:00:37]}  Qg6 {[%clk 0:00:49]} 35. f4 {[%clk 0:00:35]}  Rb6 {[%clk 0:00:45]} 36. Be4 {[%clk 0:00:35]}  Qf6 {[%clk 0:00:44]} 37. Qa4 {[%clk 0:00:34]}  e5 {[%clk 0:00:33]} 38. dxe5 {[%clk 0:00:32]}  Bxe5 {[%clk 0:00:34]} 39. Qxc4 {[%clk 0:00:23]}  Bxf4 {[%clk 0:00:34]} 40. Kg2 {[%clk 0:00:15]}  Bb8 {[%clk 0:00:22]} 41. Rf1 {[%clk 0:00:15]}  Qe6 {[%clk 0:00:22]} 42. Qc5+ {[%clk 0:00:10]}  Qd6 {[%clk 0:00:23]} 43. Qf5 {[%clk 0:00:09]}  Qxg3+ {[%clk 0:00:23]} 44. Kh1 {[%clk 0:00:10]}  Qxh4+ {[%clk 0:00:23]} 45. Kg1 {[%clk 0:00:10]}  Rg6+ {[%clk 0:00:23]} 46. Rg2 {[%clk 0:00:09]}  Ba7+ {[%clk 0:00:22]} 47. Rf2 {[%clk 0:00:09]}  Rd1# {[%clk 0:00:23]} 0-1


[Site "https://www.chess.com"]

[Event "Titled Tuesday Blitz February 22 Early 2022"]
[White "Krylov, Ivan"]
[Black "Dejmek, Mark"]
[WhiteFideId "24128066"]
[BlackFideId "2017628"]
[WhiteElo "2258"]
[BlackElo "2208"]
[Result "1/2-1/2"]
[Round "03"]
[TimeControl "180+1"]
[Date "2022.02.22"]
[WhiteClock "0:00:19"]
[BlackClock "0:00:08"]

1. e4 {[%clk 0:02:58]}  e5 {[%clk 0:02:58]} 2. Nf3 {[%clk 0:02:58]}  Nc6 {[%clk 0:02:58]} 3. Bb5 {[%clk 0:02:59]}  a6 {[%clk 0:02:59]} 4. Ba4 {[%clk 0:02:58]}  Nf6 {[%clk 0:02:59]} 5. d3 {[%clk 0:02:56]}  d6 {[%clk 0:02:50]} 6. c3 {[%clk 0:02:55]}  g6 {[%clk 0:02:50]} 7. Nbd2 {[%clk 0:02:56]}  Bg7 {[%clk 0:02:50]} 8. Nf1 {[%clk 0:02:56]}  O-O {[%clk 0:02:47]} 9. Ng3 {[%clk 0:02:56]}  h6 {[%clk 0:02:37]} 10. O-O {[%clk 0:02:54]}  Be6 {[%clk 0:02:35]} 11. Re1 {[%clk 0:02:49]}  Nb8 {[%clk 0:02:21]} 12. h3 {[%clk 0:02:48]}  c5 {[%clk 0:02:20]} 13. d4 {[%clk 0:02:47]}  cxd4 {[%clk 0:02:12]} 14. cxd4 {[%clk 0:02:48]}  exd4 {[%clk 0:02:12]} 15. Nxd4 {[%clk 0:02:45]}  Bd7 {[%clk 0:02:11]} 16. Bb3 {[%clk 0:02:43]}  Nc6 {[%clk 0:02:10]} 17. Be3 {[%clk 0:02:38]}  Re8 {[%clk 0:02:02]} 18. Qd2 {[%clk 0:01:55]}  Nxe4 {[%clk 0:01:45]} 19. Nxe4 {[%clk 0:01:54]}  Rxe4 {[%clk 0:01:45]} 20. Nxc6 {[%clk 0:01:53]}  Bxc6 {[%clk 0:01:42]} 21. Bxh6 {[%clk 0:01:52]}  Qe7 {[%clk 0:00:58]} 22. Bxg7 {[%clk 0:01:44]}  Kxg7 {[%clk 0:00:57]} 23. Qc3+ {[%clk 0:01:39]}  Qf6 {[%clk 0:00:28]} 24. Qxf6+ {[%clk 0:01:36]}  Kxf6 {[%clk 0:00:29]} 25. Rad1 {[%clk 0:01:28]}  Rxe1+ {[%clk 0:00:25]} 26. Rxe1 {[%clk 0:01:29]}  Re8 {[%clk 0:00:25]} 27. Rd1 {[%clk 0:01:24]}  Re2 {[%clk 0:00:21]} 28. Rxd6+ {[%clk 0:01:16]}  Ke7 {[%clk 0:00:20]} 29. Rd4 {[%clk 0:01:09]}  Rxb2 {[%clk 0:00:20]} 30. Rf4 {[%clk 0:01:02]}  f5 {[%clk 0:00:19]} 31. h4 {[%clk 0:01:00]}  Kf6 {[%clk 0:00:19]} 32. Rd4 {[%clk 0:00:58]}  Kg7 {[%clk 0:00:11]} 33. Rd6 {[%clk 0:00:48]}  Kh6 {[%clk 0:00:11]} 34. Bf7 {[%clk 0:00:45]}  Kh5 {[%clk 0:00:10]} 35. Rxg6 {[%clk 0:00:43]}  Kxh4 {[%clk 0:00:09]} 36. g3+ {[%clk 0:00:29]}  Kh3 {[%clk 0:00:09]} 37. Rh6+ {[%clk 0:00:27]}  Kg4 {[%clk 0:00:09]} 38. Rg6+ {[%clk 0:00:19]}  Kh3 {[%clk 0:00:08]} 39. Rh6+ {[%clk 0:00:19]}  Kg4 {[%clk 0:00:08]} 40. Rg6+ {[%clk 0:00:19]}  Kh3 {[%clk 0:00:08]} 1/2-1/2


[Site "https://www.chess.com"]

[Event "Titled Tuesday Blitz February 22 Early 2022"]
[White "Leiva, Gianmarco"]
[Black "Brankovic, Dejan"]
[WhiteFideId "3804399"]
[BlackFideId "921602"]
[WhiteElo "2328"]
[BlackElo "2209"]
[Result "1/2-1/2"]
[Round "03"]
[TimeControl "180+1"]
[Date "2022.02.22"]
[WhiteClock "0:00:04"]
[BlackClock "0:00:17"]

1. e4 {[%clk 0:02:57]}  c5 {[%clk 0:02:59]} 2. Nf3 {[%clk 0:02:58]}  d6 {[%clk 0:02:58]} 3. d4 {[%clk 0:02:55]}  cxd4 {[%clk 0:02:58]} 4. Nxd4 {[%clk 0:02:56]}  Nf6 {[%clk 0:02:58]} 5. Nc3 {[%clk 0:02:57]}  g6 {[%clk 0:02:59]} 6. Bc4 {[%clk 0:02:55]}  Bg7 {[%clk 0:02:58]} 7. f3 {[%clk 0:02:51]}  Nc6 {[%clk 0:02:59]} 8. Be3 {[%clk 0:02:51]}  Qb6 {[%clk 0:02:58]} 9. Bb5 {[%clk 0:02:05]}  Qc7 {[%clk 0:02:57]} 10. Nd5 {[%clk 0:01:53]}  Nxd5 {[%clk 0:02:17]} 11. exd5 {[%clk 0:01:53]}  a6 {[%clk 0:02:03]} 12. Ba4 {[%clk 0:01:32]}  b5 {[%clk 0:01:51]} 13. Nxc6 {[%clk 0:01:32]}  bxa4 {[%clk 0:01:50]} 14. Bd4 {[%clk 0:01:32]}  Bxd4 {[%clk 0:01:38]} 15. Qxd4 {[%clk 0:01:33]}  O-O {[%clk 0:01:32]} 16. O-O-O {[%clk 0:00:56]}  Bb7 {[%clk 0:01:25]} 17. Qxa4 {[%clk 0:00:37]}  Bxc6 {[%clk 0:01:22]} 18. dxc6 {[%clk 0:00:36]}  Rfc8 {[%clk 0:01:19]} 19. Rhe1 {[%clk 0:00:36]}  e6 {[%clk 0:01:17]} 20. Re4 {[%clk 0:00:17]}  Qxc6 {[%clk 0:01:17]} 21. Qxc6 {[%clk 0:00:18]}  Rxc6 {[%clk 0:01:17]} 22. Red4 {[%clk 0:00:19]}  d5 {[%clk 0:01:16]} 23. b3 {[%clk 0:00:16]}  Kg7 {[%clk 0:01:14]} 24. R1d2 {[%clk 0:00:16]}  Rac8 {[%clk 0:01:12]} 25. Kb2 {[%clk 0:00:17]}  Kf6 {[%clk 0:01:12]} 26. h4 {[%clk 0:00:14]}  h5 {[%clk 0:01:11]} 27. Rb4 {[%clk 0:00:13]}  R8c7 {[%clk 0:01:05]} 28. a4 {[%clk 0:00:10]}  Ke7 {[%clk 0:01:05]} 29. g4 {[%clk 0:00:10]}  hxg4 {[%clk 0:01:03]} 30. fxg4 {[%clk 0:00:11]}  f5 {[%clk 0:00:59]} 31. h5 {[%clk 0:00:11]}  Kf6 {[%clk 0:00:50]} 32. hxg6 {[%clk 0:00:01]}  Kxg6 {[%clk 0:00:45]} 33. Rf2 {[%clk 0:00:01]}  Rf7 {[%clk 0:00:41]} 34. Rbf4 {[%clk 0:00:01]}  Rd6 {[%clk 0:00:26]} 35. gxf5+ {[%clk 0:00:02]}  Rxf5 {[%clk 0:00:26]} 36. Rxf5 {[%clk 0:00:02]}  exf5 {[%clk 0:00:27]} 37. Kc3 {[%clk 0:00:03]}  d4+ {[%clk 0:00:25]} 38. Kd3 {[%clk 0:00:03]}  Kf6 {[%clk 0:00:25]} 39. Kc4 {[%clk 0:00:03]}  Ke5 {[%clk 0:00:25]} 40. Re2+ {[%clk 0:00:03]}  Kf4 {[%clk 0:00:24]} 41. Kc5 {[%clk 0:00:04]}  Rd8 {[%clk 0:00:24]} 42. Kb6 {[%clk 0:00:04]}  Rd6+ {[%clk 0:00:23]} 43. Kc5 {[%clk 0:00:04]}  Rd8 {[%clk 0:00:21]} 44. Kb6 {[%clk 0:00:05]}  Kf3 {[%clk 0:00:21]} 45. Re6 {[%clk 0:00:04]}  f4 {[%clk 0:00:18]} 46. Kxa6 {[%clk 0:00:04]}  Rc8 {[%clk 0:00:18]} 47. Rd6 {[%clk 0:00:04]}  Ke3 {[%clk 0:00:17]} 48. Re6+ {[%clk 0:00:04]}  Kf3 {[%clk 0:00:18]} 49. Rd6 {[%clk 0:00:05]}  Ke3 {[%clk 0:00:18]} 50. Re6+ {[%clk 0:00:04]}  Kf3 {[%clk 0:00:17]} 1/2-1/2


[Site "https://www.chess.com"]

[Event "Titled Tuesday Blitz February 22 Early 2022"]
[White "Lodici, Lorenzo"]
[Black "Assaubayeva, Bibisara"]
[WhiteFideId "884189"]
[BlackFideId "13708694"]
[WhiteElo "2265"]
[BlackElo "2404"]
[Result "1-0"]
[Round "03"]
[TimeControl "180+1"]
[Date "2022.02.22"]
[WhiteClock "0:00:37"]
[BlackClock "0:00:04"]

1. e4 {[%clk 0:03:00]}  c5 {[%clk 0:02:59]} 2. Be2 {[%clk 0:02:59]}  d6 {[%clk 0:02:59]} 3. d3 {[%clk 0:02:57]}  g6 {[%clk 0:02:58]} 4. f4 {[%clk 0:02:51]}  Bg7 {[%clk 0:02:58]} 5. Nf3 {[%clk 0:02:51]}  Nc6 {[%clk 0:02:59]} 6. c3 {[%clk 0:02:50]}  f5 {[%clk 0:02:56]} 7. O-O {[%clk 0:02:48]}  Nh6 {[%clk 0:02:55]} 8. e5 {[%clk 0:02:40]}  dxe5 {[%clk 0:02:26]} 9. Nxe5 {[%clk 0:02:27]}  Bxe5 {[%clk 0:02:16]} 10. fxe5 {[%clk 0:02:28]}  Nf7 {[%clk 0:02:15]} 11. Be3 {[%clk 0:02:20]}  Qb6 {[%clk 0:01:57]} 12. b4 {[%clk 0:02:15]}  Nfxe5 {[%clk 0:01:51]} 13. Bxc5 {[%clk 0:02:08]}  Qc7 {[%clk 0:01:50]} 14. d4 {[%clk 0:01:47]}  Nd7 {[%clk 0:01:30]} 15. d5 {[%clk 0:01:47]}  Nxc5 {[%clk 0:01:28]} 16. bxc5 {[%clk 0:01:48]}  Ne5 {[%clk 0:01:26]} 17. Qd4 {[%clk 0:01:47]}  b6 {[%clk 0:01:26]} 18. c6 {[%clk 0:01:45]}  Qd6 {[%clk 0:01:20]} 19. Na3 {[%clk 0:01:34]}  Qxa3 {[%clk 0:00:52]} 20. Qxe5 {[%clk 0:01:31]}  O-O {[%clk 0:00:52]} 21. Kh1 {[%clk 0:01:20]}  Qd6 {[%clk 0:00:35]} 22. Qxd6 {[%clk 0:01:06]}  exd6 {[%clk 0:00:36]} 23. a4 {[%clk 0:01:06]}  f4 {[%clk 0:00:20]} 24. a5 {[%clk 0:01:06]}  Rb8 {[%clk 0:00:18]} 25. axb6 {[%clk 0:01:04]}  Rxb6 {[%clk 0:00:16]} 26. Rxa7 {[%clk 0:01:03]}  Rb2 {[%clk 0:00:16]} 27. Bf3 {[%clk 0:00:56]}  Bf5 {[%clk 0:00:13]} 28. Re1 {[%clk 0:00:48]}  g5 {[%clk 0:00:12]} 29. h3 {[%clk 0:00:47]}  Rf7 {[%clk 0:00:10]} 30. Re8+ {[%clk 0:00:41]}  Kg7 {[%clk 0:00:10]} 31. Rxf7+ {[%clk 0:00:39]}  Kxf7 {[%clk 0:00:11]} 32. Bh5+ {[%clk 0:00:39]}  Kg7 {[%clk 0:00:05]} 33. c7 {[%clk 0:00:39]}  Rb1+ {[%clk 0:00:03]} 34. Kh2 {[%clk 0:00:39]}  Rc1 {[%clk 0:00:03]} 35. c8=Q {[%clk 0:00:36]}  Bxc8 {[%clk 0:00:04]} 36. Rxc8 {[%clk 0:00:37]} 1-0


[Site "https://www.chess.com"]

[Event "Titled Tuesday Blitz February 22 Early 2022"]
[White "Magallanes, Rey Jomar"]
[Black "Martins, Bruno Andre Leite"]
[WhiteFideId "5205948"]
[BlackFideId "1942255"]
[WhiteElo "2232"]
[BlackElo "2137"]
[Result "0-1"]
[Round "03"]
[TimeControl "180+1"]
[Date "2022.02.22"]
[WhiteClock "0:00:37"]
[BlackClock "0:01:22"]

1. e4 {[%clk 0:03:00]}  c6 {[%clk 0:02:56]} 2. d4 {[%clk 0:03:00]}  d5 {[%clk 0:02:57]} 3. e5 {[%clk 0:03:00]}  Bf5 {[%clk 0:02:56]} 4. h4 {[%clk 0:03:00]}  h5 {[%clk 0:02:54]} 5. Bd3 {[%clk 0:02:58]}  Bxd3 {[%clk 0:02:53]} 6. Qxd3 {[%clk 0:02:59]}  e6 {[%clk 0:02:54]} 7. Bg5 {[%clk 0:02:58]}  Qa5+ {[%clk 0:02:53]} 8. Nd2 {[%clk 0:02:57]}  Ne7 {[%clk 0:02:52]} 9. c4 {[%clk 0:02:54]}  Nd7 {[%clk 0:02:42]} 10. Nf3 {[%clk 0:02:50]}  Nf5 {[%clk 0:02:42]} 11. b3 {[%clk 0:02:49]}  Bb4 {[%clk 0:02:39]} 12. a4 {[%clk 0:02:40]}  f6 {[%clk 0:02:35]} 13. exf6 {[%clk 0:02:39]}  gxf6 {[%clk 0:02:36]} 14. Bf4 {[%clk 0:02:37]}  Kf7 {[%clk 0:02:36]} 15. Rd1 {[%clk 0:02:33]}  Rag8 {[%clk 0:02:28]} 16. O-O {[%clk 0:02:31]}  Rg4 {[%clk 0:02:26]} 17. Bh2 {[%clk 0:02:27]}  Rhg8 {[%clk 0:02:26]} 18. g3 {[%clk 0:02:26]}  Nf8 {[%clk 0:02:02]} 19. cxd5 {[%clk 0:02:14]}  Qxd5 {[%clk 0:01:53]} 20. Nc4 {[%clk 0:02:13]}  Nxh4 {[%clk 0:01:45]} 21. Nxh4 {[%clk 0:01:26]}  Rxh4 {[%clk 0:01:40]} 22. Ne3 {[%clk 0:01:27]}  Qf3 {[%clk 0:01:32]} 23. d5 {[%clk 0:01:16]}  cxd5 {[%clk 0:01:26]} 24. Rc1 {[%clk 0:01:16]}  Rxh2 {[%clk 0:01:24]} 25. Rc7+ {[%clk 0:01:14]}  Be7 {[%clk 0:01:24]} 26. Kxh2 {[%clk 0:01:00]}  h4 {[%clk 0:01:24]} 27. Rxe7+ {[%clk 0:00:44]}  Kxe7 {[%clk 0:01:25]} 28. Nf5+ {[%clk 0:00:37]}  Qxf5 {[%clk 0:01:21]} 29. Qxf5 {[%clk 0:00:37]}  exf5 {[%clk 0:01:22]} 0-1


[Site "https://www.chess.com"]

[Event "Titled Tuesday Blitz February 22 Early 2022"]
[White "Makhnev, Denis"]
[Black "Ovetchkin, Roman"]
[WhiteFideId "13707647"]
[BlackFideId "4119991"]
[WhiteElo "2491"]
[BlackElo "2409"]
[Result "1-0"]
[Round "03"]
[TimeControl "180+1"]
[Date "2022.02.22"]
[WhiteClock "0:00:05"]
[BlackClock "0:00:05"]

1. d4 {[%clk 0:03:00]}  Nf6 {[%clk 0:02:59]} 2. c4 {[%clk 0:03:01]}  c5 {[%clk 0:02:59]} 3. d5 {[%clk 0:03:01]}  b5 {[%clk 0:02:59]} 4. cxb5 {[%clk 0:03:02]}  a6 {[%clk 0:03:00]} 5. e3 {[%clk 0:03:02]}  g6 {[%clk 0:02:57]} 6. Nc3 {[%clk 0:03:03]}  Bg7 {[%clk 0:02:58]} 7. a4 {[%clk 0:03:03]}  O-O {[%clk 0:02:58]} 8. Nf3 {[%clk 0:03:02]}  d6 {[%clk 0:02:58]} 9. e4 {[%clk 0:03:02]}  Nbd7 {[%clk 0:02:55]} 10. Bg5 {[%clk 0:02:57]}  Qa5 {[%clk 0:02:39]} 11. Bd2 {[%clk 0:02:56]}  Qb4 {[%clk 0:02:16]} 12. Bd3 {[%clk 0:02:54]}  c4 {[%clk 0:02:01]} 13. Bc2 {[%clk 0:02:53]}  axb5 {[%clk 0:01:44]} 14. Nxb5 {[%clk 0:02:49]}  Qc5 {[%clk 0:01:39]} 15. O-O {[%clk 0:02:46]}  Ba6 {[%clk 0:01:39]} 16. Be3 {[%clk 0:02:33]}  Qc8 {[%clk 0:01:26]} 17. Nfd4 {[%clk 0:02:32]}  Ne5 {[%clk 0:01:01]} 18. h3 {[%clk 0:02:25]}  Nfd7 {[%clk 0:01:00]} 19. f4 {[%clk 0:02:11]}  Nd3 {[%clk 0:01:00]} 20. Bxd3 {[%clk 0:02:12]}  cxd3 {[%clk 0:01:00]} 21. Rc1 {[%clk 0:02:02]}  Qb7 {[%clk 0:00:50]} 22. Rc7 {[%clk 0:02:00]}  Qb6 {[%clk 0:00:50]} 23. Nf5 {[%clk 0:01:14]}  Nc5 {[%clk 0:00:48]} 24. Rc6 {[%clk 0:00:43]}  Qb7 {[%clk 0:00:47]} 25. Nxg7 {[%clk 0:00:42]}  Bxb5 {[%clk 0:00:45]} 26. axb5 {[%clk 0:00:42]}  Nxe4 {[%clk 0:00:40]} 27. Qxd3 {[%clk 0:00:38]}  Nf6 {[%clk 0:00:40]} 28. Nf5 {[%clk 0:00:13]}  gxf5 {[%clk 0:00:40]} 29. Qxf5 {[%clk 0:00:14]}  Ra4 {[%clk 0:00:33]} 30. b6 {[%clk 0:00:13]}  Rfa8 {[%clk 0:00:20]} 31. Rc7 {[%clk 0:00:12]}  Qa6 {[%clk 0:00:18]} 32. b7 {[%clk 0:00:08]}  Rf8 {[%clk 0:00:16]} 33. Qg5+ {[%clk 0:00:07]}  Kh8 {[%clk 0:00:15]} 34. Rfc1 {[%clk 0:00:05]}  Ra1 {[%clk 0:00:13]} 35. Rxa1 {[%clk 0:00:04]}  Qxa1+ {[%clk 0:00:13]} 36. Kh2 {[%clk 0:00:05]}  Qxb2 {[%clk 0:00:07]} 37. Rc8 {[%clk 0:00:05]}  Ne8 {[%clk 0:00:05]} 38. b8=Q {[%clk 0:00:05]} 1-0


[Site "https://www.chess.com"]

[Event "Titled Tuesday Blitz February 22 Early 2022"]
[White "Marcinczyk, Monika"]
[Black "Ianov, Viktor"]
[WhiteFideId "1192051"]
[BlackFideId "14102730"]
[WhiteElo "1730"]
[BlackElo "2215"]
[Result "0-1"]
[Round "03"]
[TimeControl "180+1"]
[Date "2022.02.22"]
[WhiteClock "0:00:01"]
[BlackClock "0:01:54"]

1. e4 {[%clk 0:02:16]}  d6 {[%clk 0:02:59]} 2. d4 {[%clk 0:02:14]}  g6 {[%clk 0:02:59]} 3. Nc3 {[%clk 0:02:09]}  Bg7 {[%clk 0:02:59]} 4. Be3 {[%clk 0:02:09]}  a6 {[%clk 0:02:59]} 5. Qd2 {[%clk 0:02:07]}  b5 {[%clk 0:02:59]} 6. a3 {[%clk 0:02:06]}  Bb7 {[%clk 0:02:59]} 7. f3 {[%clk 0:02:07]}  Nd7 {[%clk 0:02:59]} 8. Nh3 {[%clk 0:02:00]}  Nb6 {[%clk 0:02:58]} 9. Be2 {[%clk 0:01:56]}  e6 {[%clk 0:02:57]} 10. O-O {[%clk 0:01:55]}  h6 {[%clk 0:02:57]} 11. Nf2 {[%clk 0:01:54]}  Ne7 {[%clk 0:02:57]} 12. f4 {[%clk 0:01:50]}  d5 {[%clk 0:02:56]} 13. e5 {[%clk 0:01:42]}  h5 {[%clk 0:02:55]} 14. b3 {[%clk 0:01:37]}  Nf5 {[%clk 0:02:54]} 15. Nd3 {[%clk 0:01:35]}  Nd7 {[%clk 0:02:52]} 16. Bf2 {[%clk 0:01:27]}  h4 {[%clk 0:02:50]} 17. h3 {[%clk 0:01:18]}  Kf8 {[%clk 0:02:43]} 18. Bf3 {[%clk 0:01:12]}  Bh6 {[%clk 0:02:41]} 19. Ne2 {[%clk 0:00:57]}  Qe7 {[%clk 0:02:37]} 20. a4 {[%clk 0:00:56]}  Kg7 {[%clk 0:02:34]} 21. axb5 {[%clk 0:00:54]}  axb5 {[%clk 0:02:34]} 22. Ra5 {[%clk 0:00:51]}  c6 {[%clk 0:02:26]} 23. Rfa1 {[%clk 0:00:50]}  Rhb8 {[%clk 0:02:21]} 24. Rxa8 {[%clk 0:00:18]}  Rxa8 {[%clk 0:02:19]} 25. Rxa8 {[%clk 0:00:17]}  Bxa8 {[%clk 0:02:19]} 26. Qa5 {[%clk 0:00:17]}  Qe8 {[%clk 0:02:19]} 27. Qc7 {[%clk 0:00:14]}  Kg8 {[%clk 0:02:09]} 28. Nb4 {[%clk 0:00:14]}  Nb8 {[%clk 0:02:02]} 29. Qa7 {[%clk 0:00:11]}  Nd7 {[%clk 0:02:01]} 30. Na6 {[%clk 0:00:08]}  Qc8 {[%clk 0:01:58]} 31. Nc3 {[%clk 0:00:01]}  Bxf4 {[%clk 0:01:54]} 0-1


[Site "https://www.chess.com"]

[Event "Titled Tuesday Blitz February 22 Early 2022"]
[White "Markelova, Lubov"]
[Black "Sargissyan, Sargis"]
[WhiteFideId "24131369"]
[BlackFideId "13303210"]
[WhiteElo "1820"]
[BlackElo "2174"]
[Result "0-1"]
[Round "03"]
[TimeControl "180+1"]
[Date "2022.02.22"]
[WhiteClock "0:00:26"]
[BlackClock "0:00:49"]

1. Nf3 {[%clk 0:02:10]}  Nf6 {[%clk 0:02:57]} 2. c4 {[%clk 0:02:09]}  g6 {[%clk 0:02:57]} 3. Nc3 {[%clk 0:02:09]}  Bg7 {[%clk 0:02:57]} 4. e4 {[%clk 0:02:09]}  d6 {[%clk 0:02:57]} 5. d4 {[%clk 0:02:10]}  O-O {[%clk 0:02:58]} 6. Be2 {[%clk 0:02:11]}  e5 {[%clk 0:02:58]} 7. d5 {[%clk 0:02:10]}  a5 {[%clk 0:02:58]} 8. Bg5 {[%clk 0:02:07]}  h6 {[%clk 0:02:58]} 9. Bh4 {[%clk 0:02:07]}  Na6 {[%clk 0:02:59]} 10. Nd2 {[%clk 0:02:06]}  h5 {[%clk 0:02:48]} 11. O-O {[%clk 0:02:02]}  Bh6 {[%clk 0:02:48]} 12. f3 {[%clk 0:01:59]}  Be3+ {[%clk 0:02:47]} 13. Kh1 {[%clk 0:01:59]}  g5 {[%clk 0:02:40]} 14. Bf2 {[%clk 0:01:58]}  Bxf2 {[%clk 0:02:38]} 15. Rxf2 {[%clk 0:01:59]}  Kg7 {[%clk 0:02:36]} 16. a3 {[%clk 0:01:57]}  Bd7 {[%clk 0:02:34]} 17. b4 {[%clk 0:01:53]}  axb4 {[%clk 0:02:32]} 18. axb4 {[%clk 0:01:54]}  Nxb4 {[%clk 0:02:08]} 19. Rxa8 {[%clk 0:01:52]}  Qxa8 {[%clk 0:02:07]} 20. Qb3 {[%clk 0:01:51]}  Na6 {[%clk 0:02:04]} 21. Qa3 {[%clk 0:01:36]}  Nc5 {[%clk 0:02:00]} 22. Qb4 {[%clk 0:01:23]}  h4 {[%clk 0:01:45]} 23. Rf1 {[%clk 0:01:19]}  Nh5 {[%clk 0:01:44]} 24. Nb3 {[%clk 0:01:11]}  Ng3+ {[%clk 0:01:26]} 25. Kg1 {[%clk 0:00:49]}  Nxb3 {[%clk 0:01:08]} 26. Qxb3 {[%clk 0:00:29]}  Nxf1 {[%clk 0:01:04]} 27. Bxf1 {[%clk 0:00:30]}  Qa7+ {[%clk 0:01:03]} 28. Kh1 {[%clk 0:00:27]}  Qf2 {[%clk 0:00:51]} 29. Qd1 {[%clk 0:00:26]}  Ra8 {[%clk 0:00:49]} 0-1


[Site "https://www.chess.com"]

[Event "Titled Tuesday Blitz February 22 Early 2022"]
[White "Matinian, Nikita"]
[Black "Urazayev, Arystanbek"]
[WhiteFideId "24129100"]
[BlackFideId "13709810"]
[WhiteElo "2422"]
[BlackElo "2321"]
[Result "1-0"]
[Round "03"]
[TimeControl "180+1"]
[Date "2022.02.22"]
[WhiteClock "0:00:24"]
[BlackClock "0:00:06"]

1. e4 {[%clk 0:03:00]}  c5 {[%clk 0:02:59]} 2. Nc3 {[%clk 0:03:00]}  e6 {[%clk 0:03:00]} 3. f4 {[%clk 0:03:00]}  d5 {[%clk 0:03:00]} 4. Nf3 {[%clk 0:03:01]}  Nc6 {[%clk 0:03:00]} 5. Bb5 {[%clk 0:02:59]}  Nf6 {[%clk 0:02:57]} 6. Qe2 {[%clk 0:02:54]}  Be7 {[%clk 0:02:54]} 7. e5 {[%clk 0:02:44]}  Nd7 {[%clk 0:02:54]} 8. Bxc6 {[%clk 0:02:40]}  bxc6 {[%clk 0:02:54]} 9. g4 {[%clk 0:02:38]}  a5 {[%clk 0:02:53]} 10. f5 {[%clk 0:02:37]}  Bh4+ {[%clk 0:02:51]} 11. Kd1 {[%clk 0:02:37]}  Ba6 {[%clk 0:02:50]} 12. d3 {[%clk 0:02:37]}  h6 {[%clk 0:02:42]} 13. Bf4 {[%clk 0:02:34]}  Be7 {[%clk 0:02:34]} 14. b3 {[%clk 0:02:21]}  c4 {[%clk 0:02:33]} 15. Nd4 {[%clk 0:02:09]}  Qb6 {[%clk 0:02:23]} 16. Be3 {[%clk 0:01:56]}  c5 {[%clk 0:02:23]} 17. Na4 {[%clk 0:01:55]}  Qb7 {[%clk 0:02:03]} 18. fxe6 {[%clk 0:01:54]}  cxd4 {[%clk 0:01:52]} 19. exd7+ {[%clk 0:01:54]}  Qxd7 {[%clk 0:01:52]} 20. Bxd4 {[%clk 0:01:53]}  cxd3 {[%clk 0:01:42]} 21. cxd3 {[%clk 0:01:53]}  O-O {[%clk 0:01:39]} 22. Nb6 {[%clk 0:01:52]}  Qe6 {[%clk 0:01:38]} 23. Nxa8 {[%clk 0:01:51]}  Rxa8 {[%clk 0:01:38]} 24. Rf1 {[%clk 0:01:31]}  Qg6 {[%clk 0:01:36]} 25. Rf5 {[%clk 0:01:31]}  Bc8 {[%clk 0:01:36]} 26. Qf3 {[%clk 0:01:31]}  Be6 {[%clk 0:01:23]} 27. Rb1 {[%clk 0:01:14]}  Ba3 {[%clk 0:01:01]} 28. Bb2 {[%clk 0:01:06]}  Bxb2 {[%clk 0:00:54]} 29. Rxb2 {[%clk 0:01:06]}  Bxf5 {[%clk 0:00:55]} 30. Qxf5 {[%clk 0:01:04]}  Qb6 {[%clk 0:00:54]} 31. Qf2 {[%clk 0:01:03]}  Qb4 {[%clk 0:00:46]} 32. d4 {[%clk 0:01:02]}  a4 {[%clk 0:00:41]} 33. bxa4 {[%clk 0:00:56]}  Qxa4+ {[%clk 0:00:40]} 34. Ke1 {[%clk 0:00:53]}  Rc8 {[%clk 0:00:33]} 35. Kf1 {[%clk 0:00:53]}  Qd1+ {[%clk 0:00:32]} 36. Qe1 {[%clk 0:00:37]}  Qxg4 {[%clk 0:00:21]} 37. Rd2 {[%clk 0:00:30]}  Rc3 {[%clk 0:00:08]} 38. Rf2 {[%clk 0:00:26]}  Qxd4 {[%clk 0:00:06]} 39. e6 {[%clk 0:00:24]} 1-0


[Site "https://www.chess.com"]